bitfinex-derivatives/quotes_BTCF0:USTF0_20250108
["timestamp","ask_amount","ask_price","bid_price","bid_amount"]
[1736362291202,0.053039,94283.0,94282.0,0.15398259]
[1736362291708,0.7285757,94292.0,94282.0,0.15398259]
[1736362291709,0.5,94287.0,94282.0,0.15398259]
[1736362291905,0.053037,94288.0,94282.0,0.15398259]
[1736362292111,0.3608,94286.0,94282.0,0.15398259]
[1736362292410,0.013,94292.0,94272.0,0.3608]
[1736362292411,0.1755417,94292.0,94272.0,0.3608]
[1736362292614,0.1625417,94282.0,94272.0,0.3608]
[1736362292814,0.053039,94285.0,94272.0,0.3608]
[1736362293006,0.053039,94284.0,94272.0,0.3608]
[1736362293201,0.00156001,94287.0,94281.0,0.3608]
[1736362293509,0.002,94283.0,94282.0,0.001]
[1736362293901,0.002,94283.0,94277.0,1.5]
[1736362294211,0.001,94285.0,94277.0,1.5]
[1736362294604,0.530041,94347.0,94261.0,0.31438093]
[1736362294605,0.053039,94284.0,94261.0,0.31438093]
[1736362294905,0.7155827,94280.0,94261.0,0.31438093]
[1736362295210,0.1447,94284.0,94262.0,1.553051]
[1736362295415,0.1625417,94272.0,94261.0,0.31438093]
[1736362295614,0.053051,94262.0,94260.0,0.3608]
[1736362295801,0.5,94269.0,94251.0,0.31438093]
[1736362296005,0.1625417,94261.0,94252.0,1.5]
[1736362296201,0.5,94260.0,94252.0,1.5]
[1736362296402,0.053057,94252.0,94251.0,0.31438093]
[1736362297112,0.1463,94259.0,94201.0,0.31438093]
[1736362297113,0.053063,94242.0,94201.0,0.31438093]
[1736362297411,0.053074,94222.0,94207.0,0.053082]
[1736362297614,0.1625417,94230.0,94217.0,0.053076]
[1736362297803,0.053068,94232.0,94210.0,0.1625417]
[1736362298005,0.053068,94232.0,94217.0,0.053076]
[1736362298405,0.053068,94232.0,94202.0,0.3123]
[1736362298612,0.18947671,94237.0,94230.0,0.053069]
[1736362298809,0.18947671,94237.0,94236.0,0.053066]
[1736362299205,0.18947671,94237.0,94230.0,0.053069]
[1736362299409,0.18947671,94237.0,94231.0,0.3123]
[1736362299604,0.18947671,94242.0,94231.0,0.3123]
[1736362300519,0.18947671,94242.0,94231.0,0.365368]
[1736362300702,0.18947671,94242.0,94237.0,0.053065]
[1736362300901,0.18947671,94242.0,94231.0,0.3123]
[1736362301109,0.19047671,94242.0,94232.0,0.053068]
[1736362301309,0.19047671,94242.0,94233.0,0.053067]
[1736362301510,0.19047671,94242.0,94231.0,0.3163]
[1736362301710,0.19147671,94242.0,94232.0,0.053068]
[1736362301917,0.19047671,94242.0,94231.0,0.3153]
[1736362302311,0.001,94242.0,94231.0,0.3153]
[1736362302510,0.054063,94242.0,94231.0,0.368368]
[1736362302710,0.001,94242.0,94231.0,0.368368]
[1736362303013,0.053066,94237.0,94231.0,0.3153]
[1736362303214,0.053066,94237.0,94231.0,0.1636]
[1736362303409,0.053066,94235.0,94232.0,1.5]
[1736362303604,0.053064,94240.0,94232.0,1.5]
[1736362303909,0.053059,94250.0,94239.0,0.053064]
[1736362304104,0.25028595,94260.0,94240.0,0.304]
[1736362304309,0.053059,94249.0,94240.0,0.304]
[1736362305015,0.2496693,94257.0,94240.0,0.304]
[1736362305206,0.053057,94252.0,94241.0,0.053063]
[1736362305408,0.05306,94246.0,94235.0,0.053066]
[1736362305907,0.25028595,94251.0,94232.0,1.5]
[1736362305908,0.053061,94244.0,94232.0,1.5]
[1736362306105,0.001,94249.0,94222.0,0.1493]
[1736362306106,0.25028595,94242.0,94222.0,0.1493]
[1736362306414,0.25028595,94242.0,94227.0,0.053071]
[1736362306415,0.053066,94237.0,94227.0,0.053071]
[1736362306615,0.25028595,94242.0,94227.0,1.5]
[1736362306817,0.053067,94234.0,94227.0,1.5]
[1736362307521,0.053064,94240.0,94227.0,1.5]
[1736362307719,0.0274049,94242.0,94222.0,0.1493]
[1736362307916,0.053066,94236.0,94225.0,0.053072]
[1736362308123,0.053066,94236.0,94227.0,0.002]
[1736362308423,0.053063,94241.0,94228.0,1.55307]
[1736362308715,0.001,94240.0,94228.0,1.5]
[1736362309107,0.053066,94236.0,94228.0,1.5]
[1736362309718,0.001,94240.0,94230.0,0.053069]
[1736362310023,0.001,94240.0,94237.0,0.053065]
[1736362310223,0.001,94240.0,94229.0,0.1557]
[1736362310518,0.053065,94237.0,94229.0,0.1557]
[1736362310720,0.25028595,94250.0,94229.0,0.20877]
[1736362310721,0.053062,94242.0,94229.0,0.20877]
[1736362310913,0.02861855,94244.0,94228.0,1.5]
[1736362311113,0.053066,94236.0,94222.0,0.1493]
[1736362311321,0.053066,94235.0,94225.0,0.053072]
[1736362312123,0.053066,94235.0,94229.0,0.001]
[1736362312418,0.053066,94235.0,94234.0,0.7216]
[1736362312619,0.78703467,94240.0,94229.0,0.001]
[1736362312814,0.053077,94217.0,94208.0,0.053081]
[1736362313009,0.053072,94226.0,94201.0,0.1537]
[1736362313316,0.5,94224.0,94202.0,1.5]
[1736362313617,0.053073,94223.0,94219.0,0.3608]
[1736362313813,0.00156001,94228.0,94219.0,0.413875]
[1736362314011,0.3608,94233.0,94219.0,0.3608]
[1736362314210,0.053071,94226.0,94219.0,0.3608]
[1736362314415,0.053075,94220.0,94219.0,0.3608]
[1736362314616,0.053076,94218.0,94208.0,0.3608]
[1736362315222,0.053077,94217.0,94208.0,0.3608]
[1736362316115,0.053077,94216.0,94208.0,0.3608]
[1736362316321,0.053078,94215.0,94208.0,0.3608]
[1736362316922,0.053079,94212.0,94208.0,0.3608]
[1736362317114,0.002,94220.0,94208.0,0.3608]
[1736362317318,0.00164,94221.0,94216.0,0.3608]
[1736362317618,0.03431438,94221.0,94216.0,0.3608]
[1736362317813,0.75028595,94230.0,94216.0,0.3608]
[1736362318017,0.053077,94217.0,94216.0,0.3608]
[1736362318221,0.053077,94217.0,94208.0,0.3608]
[1736362319019,0.002,94221.0,94216.0,0.3608]
[1736362319522,0.002,94221.0,94220.0,1.5]
[1736362320716,0.05307,94229.0,94220.0,1.5]
[1736362320918,0.05307,94229.0,94226.0,0.3608]
[1736362321327,0.03559759,94230.0,94226.0,0.3608]
[1736362321626,0.00156001,94237.0,94226.0,0.3608]
[1736362321927,0.5,94230.0,94214.0,0.3608]
[1736362322114,0.053073,94225.0,94214.0,0.3608]
[1736362322312,0.005,94229.0,94214.0,0.3608]
[1736362322313,0.005,94229.0,94215.0,1.5]
[1736362322727,0.053077,94216.0,94214.0,0.3608]
[1736362322924,0.00156001,94223.0,94214.0,0.3608]
[1736362323125,0.005,94229.0,94227.0,0.053071]
[1736362323315,0.005,94229.0,94222.0,0.3608]
[1736362323316,0.005,94229.0,94228.0,1.91387]
[1736362323722,0.18947671,94249.0,94248.0,0.053059]
[1736362323927,0.0016,94254.0,94253.0,0.053056]
[1736362324117,0.19217668,94270.0,94248.0,0.7216]
[1736362324322,0.16234877,94263.0,94248.0,0.3608]
[1736362324524,0.16234877,94263.0,94262.0,0.3608]
[1736362324727,0.05305,94264.0,94248.0,0.3608]
[1736362324930,0.005,94249.0,94248.0,0.3608]
[1736362325325,0.05305,94265.0,94251.0,0.053057]
[1736362325621,0.16234877,94261.0,94260.0,0.3608]
[1736362325820,0.053052,94261.0,94260.0,0.3608]
[1736362326032,0.053052,94260.0,94248.0,0.3628]
[1736362326226,0.16234877,94258.0,94249.0,1.5]
[1736362326431,0.16234877,94258.0,94248.0,0.3628]
[1736362326432,0.053058,94250.0,94248.0,0.002]
[1736362327018,0.053058,94250.0,94248.0,0.007]
[1736362327227,0.053058,94250.0,94248.0,0.008]
[1736362327625,0.86192001,94251.0,94248.0,0.001]
[1736362327825,0.004,94250.0,94248.0,0.001]
[1736362328425,0.004,94250.0,94245.0,0.3608]
[1736362328426,0.05306,94246.0,94245.0,0.3608]
[1736362328629,0.05306,94246.0,94229.0,0.05307]
[1736362328630,0.053062,94243.0,94237.0,0.3608]
[1736362329029,0.053065,94238.0,94227.0,0.3608]
[1736362329233,0.16234877,94240.0,94227.0,0.3608]
[1736362329428,0.053066,94235.0,94227.0,0.3608]
[1736362329838,0.053066,94235.0,94223.0,0.053073]
[1736362330138,0.053069,94230.0,94217.0,0.413877]
[1736362330528,0.16234877,94233.0,94217.0,0.3608]
[1736362330731,0.5,94227.0,94217.0,0.3608]
[1736362330929,0.053075,94220.0,94211.0,0.31438093]
[1736362331129,0.053075,94220.0,94205.0,0.3608]
[1736362331130,0.053075,94220.0,94207.0,0.053082]
[1736362331433,0.053075,94220.0,94205.0,0.3608]
[1736362331434,0.053072,94226.0,94217.0,0.005]
[1736362331736,0.053072,94226.0,94217.0,0.008]
[1736362331933,0.053072,94226.0,94217.0,0.004]
[1736362332127,0.00116,94230.0,94222.0,0.3608]
[1736362332332,0.02969484,94233.0,94222.0,0.413874]
[1736362332526,0.053068,94232.0,94222.0,0.3608]
[1736362332943,0.21541677,94232.0,94222.0,0.3608]
[1736362333141,0.21541677,94232.0,94223.0,1.5]
[1736362333342,0.053068,94232.0,94223.0,1.5]
[1736362333739,0.053068,94232.0,94222.0,0.3608]
[1736362334039,0.18876315,94236.0,94222.0,0.3608]
[1736362334040,0.02946315,94236.0,94222.0,0.3608]
[1736362334242,0.52422878,94240.0,94222.0,0.3608]
[1736362334243,0.053067,94234.0,94222.0,0.3608]
[1736362334443,0.1512,94239.0,94222.0,0.3608]
[1736362334845,0.053068,94233.0,94222.0,0.3608]
[1736362335843,0.053068,94233.0,94229.0,0.3608]
[1736362336633,0.054068,94233.0,94229.0,0.3608]
[1736362337236,0.055068,94233.0,94229.0,0.3608]
[1736362337536,0.002,94233.0,94230.0,0.053069]
[1736362337737,0.002,94233.0,94229.0,0.3608]
[1736362338138,0.002,94233.0,94229.0,0.413869]
[1736362338641,0.006,94233.0,94229.0,0.413869]
[1736362339237,0.006,94233.0,94229.0,0.3608]
[1736362339640,0.053069,94230.0,94229.0,0.3608]
[1736362339836,0.053069,94230.0,94218.0,0.00056]
[1736362340038,0.053069,94230.0,94217.0,0.3608]
[1736362340039,0.053076,94218.0,94217.0,0.3608]
[1736362340353,0.053077,94216.0,94209.0,1.5]
[1736362340745,0.053077,94216.0,94208.0,0.3608]
[1736362341149,0.053074,94222.0,94208.0,0.3608]
[1736362341348,0.053075,94219.0,94208.0,0.3608]
[1736362341543,0.053073,94225.0,94210.0,0.05308]
[1736362341743,0.3608,94223.0,94208.0,0.3608]
[1736362341946,0.413873,94223.0,94209.0,0.053081]
[1736362342248,0.16234877,94220.0,94208.0,0.3608]
[1736362342440,0.053079,94214.0,94208.0,0.3608]
[1736362342640,0.053079,94214.0,94209.0,0.002]
[1736362343045,0.053079,94214.0,94210.0,0.004]
[1736362344149,0.05308,94211.0,94210.0,0.004]
[1736362345148,0.053081,94209.0,94208.0,0.002]
[1736362346051,0.003,94211.0,94209.0,0.053081]
[1736362346350,0.003,94211.0,94210.0,0.05308]
[1736362346647,0.16234877,94220.0,94211.0,0.05308]
[1736362346853,0.16234877,94220.0,94219.0,0.3608]
[1736362347050,0.053074,94223.0,94218.0,0.3608]
[1736362347252,0.053075,94220.0,94216.0,0.3608]
[1736362347556,0.05307,94228.0,94216.0,0.3608]
[1736362347749,0.053072,94225.0,94216.0,0.3608]
[1736362348053,0.053074,94221.0,94216.0,0.3608]
[1736362348243,0.3608,94219.0,94205.0,0.3608]
[1736362348450,0.05308,94210.0,94209.0,0.001]
[1736362348850,0.3608,94210.0,94200.0,0.1]
[1736362349055,0.053084,94204.0,94200.0,0.1]
[1736362349251,0.053085,94202.0,94200.0,0.1]
[1736362349452,0.053086,94201.0,94200.0,0.1]
[1736362349943,0.413886,94201.0,94200.0,0.1]
[1736362350257,0.413886,94201.0,94200.0,0.101]
[1736362350651,0.413886,94201.0,94200.0,0.0396574]
[1736362350847,0.053098,94180.0,94166.0,0.33879999]
[1736362351050,0.16234877,94176.0,94166.0,0.33879999]
[1736362351955,0.324,94190.0,94166.0,0.33879999]
[1736362351956,0.5,94191.0,94175.0,0.3608]
[1736362352151,0.16234877,94200.0,94184.0,0.3608]
[1736362352348,0.053087,94198.0,94185.0,0.4696]
[1736362352756,0.053087,94198.0,94184.0,0.3608]
[1736362352757,0.053094,94186.0,94184.0,0.3608]
[1736362352955,0.053098,94180.0,94169.0,0.3608]
[1736362353147,0.16234877,94179.0,94169.0,0.3608]
[1736362353745,0.053101,94174.0,94169.0,0.3608]
[1736362354260,0.16234877,94179.0,94169.0,0.3608]
[1736362354456,0.053103,94171.0,94169.0,0.3608]
[1736362354653,0.053105,94167.0,94157.0,0.3608]
[1736362354955,0.21545377,94167.0,94157.0,0.3608]
[1736362355255,0.16234877,94167.0,94157.0,0.3608]
[1736362355447,0.053107,94163.0,94157.0,0.3608]
[1736362355651,0.053118,94144.0,94143.0,0.00056]
[1736362355856,0.3608,94144.0,94124.0,0.25371264]
[1736362356045,0.3608,94158.0,94157.0,0.002]
[1736362356245,0.3608,94158.0,94157.0,0.006]
[1736362356453,0.3608,94164.0,94157.0,0.006]
[1736362356754,0.053109,94159.0,94157.0,0.006]
[1736362356962,0.553109,94159.0,94157.0,0.006]
[1736362357145,0.053109,94159.0,94157.0,0.002]
[1736362357551,0.053116,94147.0,94130.0,0.053125]
[1736362357747,0.3608,94140.0,94130.0,0.053125]
[1736362358252,0.52314877,94140.0,94126.0,0.209328]
[1736362359154,0.52314877,94140.0,94130.0,0.002]
[1736362359361,0.3608,94131.0,94130.0,0.002]
[1736362359956,0.413925,94131.0,94130.0,0.002]
[1736362360359,0.413925,94131.0,94130.0,0.004]
[1736362360657,0.413925,94131.0,94130.0,0.002]
[1736362361460,0.3618,94131.0,94130.0,0.002]
[1736362362052,0.003,94131.0,94130.0,0.002]
[1736362362458,0.3638,94131.0,94120.0,0.053131]
[1736362362654,0.3608,94131.0,94130.0,0.001]
[1736362362876,0.7216,94131.0,94130.0,0.001]
[1736362363265,0.8801,94131.0,94115.0,1.5]
[1736362363563,0.572425,94131.0,94130.0,0.002]
[1736362364252,0.5203,94131.0,94115.0,1.5]
[1736362364450,0.3608,94123.0,94115.0,1.5]
[1736362365762,0.25435251,94123.0,94115.0,1.5]
[1736362366062,0.053131,94120.0,94115.0,0.002]
[1736362366459,0.053131,94120.0,94116.0,1.5]
[1736362366963,0.25535251,94123.0,94116.0,1.5]
[1736362367358,0.25535251,94123.0,94115.0,0.004]
[1736362367554,0.28604684,94123.0,94115.0,0.004]
[1736362367761,0.28604684,94123.0,94116.0,1.5]
[1736362367960,0.28504684,94123.0,94116.0,1.5]
[1736362368354,0.33817684,94123.0,94116.0,1.5]
[1736362368554,0.28504684,94123.0,94116.0,1.5]
[1736362369066,0.28504684,94123.0,94116.0,1.501]
[1736362369257,0.33817684,94123.0,94116.0,1.501]
[1736362369455,0.28504684,94123.0,94116.0,1.501]
[1736362369660,0.28504684,94123.0,94116.0,1.503]
[1736362370262,0.28504684,94123.0,94116.0,1.556133]
[1736362370459,0.52042001,94131.0,94116.0,1.556133]
[1736362370460,0.00112001,94131.0,94122.0,0.3608]
[1736362370664,0.3608,94144.0,94131.0,0.053125]
[1736362370665,0.3608,94136.0,94131.0,0.053125]
[1736362370853,0.3608,94136.0,94125.0,0.053128]
[1736362371057,0.3608,94136.0,94126.0,0.3122]
[1736362371259,0.3608,94136.0,94130.0,0.053126]
[1736362371459,0.10849173,94140.0,94126.0,0.3122]
[1736362371764,0.10849173,94140.0,94133.0,0.053124]
[1736362372158,0.10849173,94140.0,94130.0,0.3608]
[1736362372159,0.3608,94136.0,94128.0,0.053126]
[1736362372359,0.10849173,94140.0,94133.0,0.053124]
[1736362372766,0.39029825,94144.0,94134.0,0.053123]
[1736362372961,0.003,94140.0,94134.0,0.053123]
[1736362373368,0.3608,94144.0,94134.0,0.053123]
[1736362373561,0.006,94140.0,94131.0,0.1582]
[1736362373766,0.053108,94162.0,94138.0,0.3608]
[1736362374071,0.16271229,94170.0,94153.0,0.053112]
[1736362374264,0.3608,94165.0,94156.0,0.053111]
[1736362374462,0.053101,94174.0,94162.0,0.3608]
[1736362374670,0.3608,94167.0,94157.0,0.1568]
[1736362375062,0.413905,94167.0,94157.0,0.1568]
[1736362375263,0.053106,94166.0,94157.0,0.1568]
[1736362375463,0.053107,94163.0,94157.0,0.1568]
[1736362376170,0.053107,94163.0,94157.0,0.1588]
[1736362376573,0.053107,94163.0,94157.0,0.1608]
[1736362376763,0.053108,94162.0,94157.0,0.1608]
[1736362376968,0.41391,94158.0,94157.0,0.004]
[1736362377364,0.41391,94158.0,94157.0,0.002]
[1736362377571,0.41391,94158.0,94157.0,0.004]
[1736362377976,0.053116,94147.0,94146.0,0.25371264]
[1736362378187,0.413916,94147.0,94146.0,0.25371264]
[1736362379063,0.413916,94147.0,94130.0,0.25371264]
[1736362379263,0.774725,94131.0,94130.0,0.16971263]
[1736362380363,0.774725,94131.0,94130.0,0.17171263]
[1736362380778,0.774725,94131.0,94130.0,0.14971262]
[1736362381376,0.80097312,94131.0,94130.0,0.14971262]
[1736362381571,0.80097312,94131.0,94130.0,1e-08]
[1736362381772,0.05313,94123.0,94122.0,0.31720225]
[1736362382072,0.05313,94123.0,94087.0,0.3608]
[1736362382073,0.41393,94123.0,94109.0,0.3806427]
[1736362382274,0.413937,94110.0,94109.0,0.3806427]
[1736362383370,0.3608,94110.0,94096.0,0.053144]
[1736362383572,0.3608,94102.0,94096.0,0.053144]
[1736362383972,0.053142,94101.0,94089.0,0.3806427]
[1736362385274,0.054142,94101.0,94100.0,0.101]
[1736362385475,0.054142,94101.0,94100.0,0.103]
[1736362385783,0.053156,94076.0,94061.0,0.07581493]
[1736362385985,0.413958,94073.0,94061.0,0.02265093]
[1736362386475,0.57667029,94073.0,94058.0,0.44408315]
[1736362387085,0.3608,94064.0,94058.0,0.44408315]
[1736362388373,0.5246323,94073.0,94072.0,0.002]
[1736362388374,0.00112001,94073.0,94072.0,0.002]
[1736362388688,0.001,94076.0,94072.0,0.002]
[1736362389077,0.02358624,94079.0,94075.0,1.5]
[1736362389373,0.053154,94079.0,94062.0,0.053164]
[1736362389688,0.001,94073.0,94063.0,0.053163]
[1736362389888,0.16371229,94073.0,94053.0,0.3608]
[1736362390087,0.3608,94064.0,94054.0,0.053168]
[1736362390387,0.3608,94064.0,94055.0,0.053167]
[1736362390590,0.3608,94064.0,94053.0,0.3608]
[1736362390777,0.3608,94064.0,94056.0,0.053167]
[1736362390987,0.3608,94064.0,94053.0,0.3608]
[1736362391184,0.053166,94059.0,94053.0,0.3608]
[1736362391381,0.3608,94064.0,94053.0,0.3608]
[1736362391580,0.053168,94055.0,94053.0,0.3608]
[1736362393079,0.053168,94055.0,94053.0,0.002]
[1736362393279,0.3608,94054.0,94053.0,0.002]
[1736362393893,1.0102,94054.0,94044.0,0.3608]
[1736362394092,0.3608,94045.0,94029.0,0.053183]
[1736362394393,0.16271229,94040.0,94035.0,1.5]
[1736362394578,0.053179,94036.0,94035.0,1.5]
[1736362394778,0.49469225,94045.0,94012.0,0.80488315]
[1736362394779,0.5,94035.0,94012.0,0.80488315]
[1736362394982,0.16271229,94022.0,94012.0,0.80488315]
[1736362395189,0.3608,94029.0,94012.0,2.30488315]
[1736362395392,0.053182,94031.0,94030.0,0.38760609]
[1736362395578,0.3608,94037.0,94032.0,0.053181]
[1736362395778,0.5,94049.0,94035.0,0.002]
[1736362395983,0.3608,94051.0,94042.0,0.053175]
[1736362396182,0.16271229,94050.0,94036.0,0.3608]
[1736362396482,0.38402116,94051.0,94036.0,0.3608]
[1736362396687,0.3608,94060.0,94045.0,0.3608]
[1736362397184,0.3608,94060.0,94046.0,0.053173]
[1736362397492,0.54678434,94060.0,94051.0,0.05317]
[1736362397988,0.54678434,94060.0,94045.0,0.3608]
[1736362398193,0.5,94054.0,94045.0,0.3608]
[1736362398392,0.053166,94059.0,94045.0,0.413973]
[1736362398882,0.001,94050.0,94045.0,0.413973]
[1736362399281,0.001,94050.0,94045.0,0.3608]
[1736362399585,0.053171,94051.0,94045.0,0.3608]
[1736362400089,0.54678434,94060.0,94045.0,0.3608]
[1736362400288,0.053176,94042.0,94036.0,0.3608]
[1736362400481,0.053178,94038.0,94036.0,0.3608]
[1736362400687,0.053178,94038.0,94027.0,0.053184]
[1736362400688,0.5,94042.0,94024.0,0.3608]
[1736362400988,0.053185,94025.0,94016.0,0.02274516]
[1736362401186,0.053185,94025.0,94017.0,0.053189]
[1736362401389,0.3608,94031.0,94016.0,0.02274516]
[1736362401688,0.00108001,94037.0,94026.0,0.3608]
[1736362401882,0.1547,94050.0,94026.0,0.3608]
[1736362402087,0.053171,94049.0,94036.0,0.053178]
[1736362402389,0.3608,94049.0,94034.0,0.3608]
[1736362402684,0.3608,94049.0,94026.0,0.3608]
[1736362402685,0.3608,94038.0,94026.0,0.3608]
[1736362402991,0.053182,94031.0,94022.0,0.3608]
[1736362403386,0.053182,94031.0,94027.0,1.5]
[1736362403992,0.053182,94030.0,94022.0,0.3608]
[1736362404496,0.053182,94030.0,94023.0,1.5]
[1736362404886,0.053183,94029.0,94023.0,1.5]
[1736362405082,0.5,94039.0,94023.0,1.8608]
[1736362405282,0.3608,94049.0,94034.0,0.3608]
[1736362405495,0.3608,94049.0,94042.0,0.053175]
[1736362405691,0.053167,94057.0,94045.0,0.053173]
[1736362405884,0.66271229,94060.0,94042.0,0.3608]
[1736362406087,0.16271229,94052.0,94042.0,0.3608]
[1736362406292,0.50108001,94056.0,94050.0,0.3608]
[1736362406481,0.5,94056.0,94050.0,0.3608]
[1736362406682,0.053169,94054.0,94050.0,0.3608]
[1736362407288,0.053169,94053.0,94050.0,0.3608]
[1736362407487,0.50108001,94056.0,94042.0,0.3608]
[1736362407694,0.3608,94048.0,94035.0,0.4918]
[1736362407902,0.16271229,94045.0,94032.0,0.0006]
[1736362408086,0.053175,94042.0,94031.0,0.3608]
[1736362408282,0.5,94046.0,94031.0,0.3608]
[1736362408487,0.3608,94048.0,94036.0,0.053179]
[1736362408688,0.053173,94047.0,94036.0,0.053179]
[1736362408889,0.053175,94042.0,94032.0,0.0006]
[1736362409198,0.053175,94042.0,94031.0,0.413981]
[1736362409386,0.053181,94032.0,94031.0,0.3608]
[1736362409593,0.3608,94032.0,94026.0,0.053184]
[1736362409891,0.053182,94031.0,94022.0,0.413987]
[1736362410193,0.3608,94032.0,94022.0,0.3608]
[1736362410895,0.053185,94025.0,94022.0,0.3608]
[1736362411590,0.053182,94031.0,94022.0,0.3608]
[1736362411796,0.053182,94030.0,94023.0,0.053186]
[1736362413100,0.053182,94030.0,94022.0,0.3608]
[1736362413101,0.38377103,94032.0,94024.0,0.053185]
[1736362413298,0.38377103,94032.0,94022.0,0.3608]
[1736362413595,0.053188,94020.0,94013.0,0.3608]
[1736362413800,0.053188,94019.0,94013.0,0.3608]
[1736362414102,0.3608,94023.0,94013.0,0.3608]
[1736362414287,0.5,94022.0,94013.0,0.3608]
[1736362414491,0.053189,94019.0,94013.0,0.3608]
[1736362414893,0.053189,94019.0,94013.0,0.413992]
[1736362415101,0.5,94022.0,94013.0,0.413992]
[1736362415405,0.05319,94016.0,94013.0,0.3608]
[1736362416301,0.09435677,94020.0,94019.0,0.053188]
[1736362416499,0.12580903,94028.0,94027.0,0.053184]
[1736362416803,0.053177,94040.0,94027.0,0.413984]
[1736362417003,0.12580903,94045.0,94039.0,0.3608]
[1736362417196,0.053175,94042.0,94039.0,0.3608]
[1736362417503,0.053176,94041.0,94039.0,0.413977]
[1736362417803,0.14907755,94045.0,94044.0,0.053174]
[1736362418003,0.053176,94041.0,94039.0,0.3608]
[1736362418198,0.053176,94041.0,94039.0,0.413977]
[1736362418400,0.053176,94041.0,94040.0,0.053176]
[1736362418803,0.053176,94041.0,94039.0,0.3608]
[1736362419395,0.053176,94040.0,94039.0,0.3608]
[1736362419594,0.005,94045.0,94039.0,0.413977]
[1736362419595,0.053175,94042.0,94039.0,0.413977]
[1736362419900,0.004,94041.0,94039.0,0.413977]
[1736362420304,0.053176,94040.0,94039.0,0.3608]
[1736362420802,0.053176,94040.0,94031.0,0.1587]
[1736362420803,0.053181,94032.0,94031.0,0.19008845]
[1736362421004,0.053181,94032.0,94031.0,0.16808844]
[1736362422105,0.055181,94032.0,94031.0,0.16808844]
[1736362422405,0.055181,94032.0,94026.0,0.053184]
[1736362423297,0.5,94029.0,94026.0,0.053184]
[1736362423499,0.5,94029.0,94014.0,1.50056]
[1736362423805,0.5,94031.0,94028.0,0.053183]
[1736362424003,0.008,94032.0,94013.0,0.3608]
[1736362424199,0.053182,94030.0,94023.0,0.053186]
[1736362424392,0.3608,94028.0,94013.0,0.3608]
[1736362424592,0.3608,94028.0,94000.0,0.1]
[1736362424593,0.3608,94019.0,94005.0,0.83561409]
[1736362424900,0.053192,94012.0,94005.0,0.67761409]
[1736362425089,0.16303423,94015.0,94005.0,0.67761409]
[1736362425297,0.5,94009.0,94000.0,0.1]
[1736362425496,0.053198,94001.0,94000.0,0.1]
[1736362425900,0.053196,94006.0,94000.0,0.1]
[1736362426206,0.00112001,94008.0,94000.0,0.4608]
[1736362426398,0.38376867,94010.0,94001.0,0.053198]
[1736362426596,0.38376867,94010.0,94000.0,0.4608]
[1736362427109,0.70403028,94010.0,94000.0,0.4608]
[1736362427298,0.053195,94007.0,94000.0,0.4608]
[1736362427906,0.053196,94006.0,94000.0,0.4608]
[1736362428097,0.053198,94001.0,94000.0,0.4608]
[1736362429704,0.053198,94001.0,94000.0,1.9608]
[1736362430106,0.413998,94001.0,94000.0,1.6]
[1736362430301,0.413998,94001.0,94000.0,0.1]
[1736362430499,0.053205,93990.0,93985.0,0.3608]
[1736362430698,0.053205,93990.0,93986.0,1.5]
[1736362431209,0.5,93999.0,93985.0,0.3608]
[1736362431409,0.053207,93986.0,93985.0,0.3608]
[1736362431906,0.8608,93989.0,93975.0,0.3608]
[1736362432103,0.5,93989.0,93975.0,0.3608]
[1736362432295,0.16303423,94000.0,93992.0,0.053203]
[1736362432495,0.02318626,94000.0,93993.0,0.053203]
[1736362432699,0.3608,94009.0,93991.0,0.3608]
[1736362433005,0.053196,94006.0,94005.0,0.3608]
[1736362433206,0.053196,94007.0,94005.0,1.5]
[1736362433909,0.07624805,94007.0,93984.0,0.384608]
[1736362434103,0.21623623,93994.0,93984.0,0.384608]
[1736362434303,0.16303423,93994.0,93984.0,0.3314]
[1736362434504,0.16303423,93994.0,93989.0,0.053205]
[1736362434904,0.16303423,93994.0,93985.0,1.5]
[1736362435503,0.21623723,93994.0,93986.0,0.053207]
[1736362436010,0.053199,94000.0,93986.0,0.053207]
[1736362436209,0.36196,94002.0,93994.0,0.053202]
[1736362436406,0.36196,94002.0,93990.0,0.3608]
[1736362436407,0.001,93994.0,93988.0,0.053206]
[1736362436596,0.001,93994.0,93985.0,1.50056]
[1736362436797,0.001,93994.0,93900.0,0.1]
[1736362437005,0.053224,93956.0,93928.0,0.02286836]
[1736362437203,0.7216,93932.0,93928.0,0.02286836]
[1736362437418,0.414032,93943.0,93931.0,2.0075236]
[1736362437603,0.3608,93943.0,93931.0,2.0607616]
[1736362437918,0.00124001,93957.0,93942.0,0.3608]
[1736362438111,0.053223,93959.0,93952.0,0.3608]
[1736362438307,0.5,93976.0,93956.0,0.053224]
[1736362438508,0.3608,93991.0,93975.0,0.3608]
[1736362438699,0.0208928,94005.0,93985.0,0.3608]
[1736362438906,0.1631,94009.0,93999.0,0.3608]
[1736362439109,0.1631,94009.0,94008.0,0.3608]
[1736362439110,0.216294,94009.0,94008.0,0.3608]
[1736362439309,0.053194,94009.0,94008.0,0.3608]
[1736362439705,0.053191,94016.0,94008.0,1.8608]
[1736362439900,0.1631,94027.0,94013.0,0.3608]
[1736362440107,0.5,94024.0,94008.0,1.8608]
[1736362440308,0.053194,94009.0,94008.0,1.8608]
[1736362440510,0.5,94014.0,93993.0,0.3608]
[1736362440712,0.414,94000.0,93991.0,0.1588]